fUSD/lending_fUSD_20250607
["ID","MTS","AMOUNT","RATE_DAILY","PERIOD"]
[364839602,1749267086756,-166.017389,0.0002789,7]
[364839603,1749267086766,-961.5,0.0002789,5]
[364839604,1749267086776,-480.0,0.0002789,5]
[364839605,1749267086787,-480.0,0.0002789,5]
[364839606,1749267086797,-3258.93,0.0002789,5]
[364839607,1749267086807,-777.55,0.0002789,5]
[364839608,1749267086817,-2623.17,0.0002789,5]
[364839609,1749267086827,-480.0,0.0002789,5]
[364839610,1749267086837,-166.017389,0.0002789,7]
[364839611,1749267086846,-501.6745686,0.0002789,5]
[364839612,1749267086856,-480.0,0.0002789,5]
[364839613,1749267086866,-480.0,0.0002789,5]
[364839614,1749267086876,-480.0,0.0002789,5]
[364839615,1749267086886,-734.71,0.0002789,5]
[364839616,1749267086896,-1458.57,0.0002789,5]
[364839617,1749267086907,-571.8,0.0002789,5]
[364839618,1749267086917,-1093.12,0.0002789,5]
[364839619,1749267086928,-480.0,0.0002789,5]
[364839620,1749267086938,-855.47,0.0002789,5]
[364839621,1749267086949,-480.0,0.0002789,5]
[364839622,1749267086960,-151.0,0.0002789,7]
[364839623,1749267086970,-480.0,0.0002789,5]
[364839624,1749267086981,-1675.33,0.0002789,5]
[364839625,1749267086993,-1219.17,0.0002789,5]
[364839626,1749267087005,-480.0,0.0002789,5]
[364839627,1749267087015,-480.0,0.0002789,5]
[364839628,1749267087026,-480.0,0.0002789,5]
[364839629,1749267087037,-5339.54,0.0002789,5]
[364839630,1749267087047,-1143.16,0.0002789,5]
[364839631,1749267087057,-1392.55,0.0002789,5]
[364839632,1749267087067,-480.0,0.0002789,5]
[364839633,1749267087081,-480.0,0.0002789,5]
[364839634,1749267087092,-2115.0,0.0002789,5]
[364839635,1749267087102,-480.0,0.0002789,5]
[364839636,1749267087112,-3704.48,0.0002789,5]
[364839637,1749267087123,-3855.85,0.0002789,5]
[364839638,1749267087134,-480.0,0.0002789,5]
[364839639,1749267087144,-480.0,0.0002789,5]
[364839640,1749267087154,-1529.93,0.0002789,5]
[364839641,1749267087165,-480.0,0.0002789,5]
[364839642,1749267087175,-749.45,0.0002789,5]
[364839643,1749267087185,-480.0,0.0002789,5]
[364839644,1749267087195,-480.0,0.0002789,5]
[364839645,1749267087206,-480.0,0.0002789,5]
[364839646,1749267087216,-480.0,0.0002789,5]
[364839647,1749267087226,-518.86895502,0.0002789,5]
[364839648,1749267087237,-1927.59,0.0002789,5]
[364839649,1749267087247,-480.0,0.0002789,5]
[364839650,1749267087257,-480.0,0.0002789,5]
[364839651,1749267087268,-480.0,0.0002789,5]
[364839652,1749267087278,-716.74,0.0002789,5]
[364839653,1749267087288,-737.46,0.0002789,5]
[364839654,1749267087299,-480.0,0.0002789,5]
[364839655,1749267087309,-1806.88,0.0002789,5]
[364839656,1749267087320,-687.89,0.0002789,5]
[364839657,1749267087330,-480.0,0.0002789,5]
[364839658,1749267087340,-1753.76,0.0002789,5]
[364839659,1749267087351,-296.693264,0.0002789,7]
[364839660,1749267087361,-494.08,0.0002789,5]
[364839661,1749267087371,-1122.69,0.0002789,5]
[364839662,1749267087383,-480.0,0.0002789,5]
[364839663,1749267087393,-296.693264,0.0002789,7]
[364839664,1749267087405,-12535.73,0.0002789,5]
[364839665,1749267087415,-1414.74,0.0002789,5]
[364839666,1749267087426,-10413.24,0.0002789,5]
[364839667,1749267087436,-480.0,0.0002789,5]
[364839668,1749267087447,-480.0,0.0002789,5]
[364839669,1749267087459,-998.9,0.0002789,5]
[364839670,1749267087469,-521.13,0.0002789,5]
[364839671,1749267087479,-1778.95768942,0.0002789,5]
[364839676,1749267088642,-225.38117904,0.00026249,2]
[364839677,1749267088652,-151.0,0.00027255,7]
[364839678,1749267088661,-256.55416432,0.00027397,5]
[364839679,1749267088677,-223.44583568,0.00027397,5]
[364839680,1749267088686,-480.0,0.00027397,5]
[364839681,1749267088696,-480.0,0.00027397,5]
[364839682,1749267088705,-151.0,0.00027397,7]
[364839683,1749267088714,-942.41414754,0.00027397,5]
[364839684,1749267088725,-879.98020013,0.00027397,5]
[364839685,1749267088736,-4679.45506281,0.00027397,5]
[364839686,1749267088759,-9805.80121327,0.00027397,5]
[364839687,1749267089186,-482.87541637,0.00027171,2]
[364839688,1749267089212,-150.0,0.00027031,2]
[364839689,1749267089223,-299.8151138,0.00027171,2]
[364839690,1749267089243,-451.07946983,0.00027171,2]
[364839691,1749267089254,-4206.18937625,0.00027397,5]
[364839692,1749267089266,-151.0,0.00027397,7]
[364839693,1749267089278,-480.0,0.00027397,5]
[364839694,1749267089287,-721.13161669,0.00027505,2]
[364839695,1749267089299,-2669.65004085,0.00027505,2]
[364839737,1749267715542,200.0,0.00035616,120]
[364839738,1749267889776,160.72,0.00013699,2]
[364839740,1749267960529,-151.0,0.00019615,2]
[364839741,1749267960551,-42.5935424,0.00019621,2]
[364839767,1749268231947,-151.0,0.0001959,2]
[364839768,1749268231957,-151.0,0.00019606,2]
[364839769,1749268231966,-151.0,0.0001961,2]
[364839770,1749268231975,-250.0,0.00019611,2]
[364839771,1749268231985,-151.0,0.00019613,2]
[364839772,1749268231994,-217.49425501,0.00019972,2]
[364839773,1749268232003,-300.0,0.00019987,2]
[364839774,1749268232012,-1200.0,0.00019987,2]
[364839775,1749268232021,-151.0,0.00019988,2]
[364839776,1749268232030,-151.0,0.00019988,2]
[364839777,1749268232039,-151.0,0.00019988,2]
[364839778,1749268232048,-151.0,0.00019988,2]
[364839779,1749268232057,-151.0,0.00019988,2]
[364839780,1749268232067,-151.0,0.00019988,2]
[364839781,1749268232076,-151.0,0.00019988,2]
[364839782,1749268232086,-151.0,0.00019988,2]
[364839783,1749268232095,-151.0,0.00019988,2]
[364839784,1749268232104,-151.0,0.00019988,2]
[364839785,1749268232114,-267.66181736,0.00019988,2]
[364839786,1749268232123,-328.51343847,0.0001999,2]
[364839787,1749268232134,-172.78958301,0.00019999,2]
[364839788,1749268232144,-2000.0,0.00019999,2]
[364839789,1749268232154,-254.31,0.00019999,2]
[364839790,1749268232163,-224.0,0.00019999,2]
[364839791,1749268232173,-2165.0457156,0.00019999,2]
[364839792,1749268232189,-21269.71203158,0.0002,2]
[364839793,1749268232204,-14334.97796443,0.0002,2]
[364839794,1749268232214,-480.0,0.0002,4]
[364839795,1749268232223,-160.72,0.00020187,2]
[364839796,1749268232232,-254.31,0.00021369,2]
[364839797,1749268232241,-250.0,0.00021571,2]
[364839798,1749268232251,-250.0,0.00021577,2]
[364839799,1749268232260,-420.0,0.00021764,2]
[364839800,1749268232269,-1680.0,0.00021868,2]
[364839801,1749268232279,-800.0,0.00021969,4]
[364839802,1749268232289,-664.75347777,0.00022062,2]
[364839804,1749268232299,-254.31,0.00022739,2]
[364839806,1749268232308,-308.0,0.00023699,2]
[364839808,1749268232318,-1200.0,0.00023927,2]
[364839810,1749268232327,-150.0,0.00023955,2]
[364839812,1749268232337,-318.4,0.00023969,2]
[364839814,1749268232346,-362.56182341,0.00024,10]
[364839815,1749268232355,-362.5618233,0.00024,10]
[364839817,1749268232368,-362.5618233,0.00024,10]
[364839818,1749268232377,-362.5618233,0.00024,10]
[364839820,1749268232386,-362.5618233,0.00024,10]
[364839822,1749268232395,-362.5618233,0.00024,10]
[364839824,1749268232405,-362.5618233,0.00024,10]
[364839826,1749268232414,-355.49,0.00024022,2]
[364839828,1749268232424,-254.31,0.00024109,2]
[364839830,1749268232433,-3220.53883428,0.00024316,2]
[364839832,1749268232447,-1290.74413604,0.00024316,2]
[364839835,1749268232460,-311.88590251,0.00024316,2]
[364839837,1749268232472,-3206.25112717,0.00024316,2]
[364839839,1749268232481,-802.35023137,0.00024335,2]
[364839841,1749268232493,-597.53020642,0.00024335,2]
[364839843,1749268232505,-321.20766206,0.00024335,2]
[364839845,1749268232517,-8971.46852804,0.00024335,2]
[364839848,1749268232535,-2010.3903531,0.00024335,2]
[364839850,1749268232547,-5072.15301901,0.00024335,2]
[364839852,1749268232557,-963.73,0.00024388,2]
[364839854,1749268232567,-2056.2318852,0.00024409,2]
[364839858,1749268232582,-262.5,0.00024409,2]
[364839861,1749268232594,-777.2081148,0.00024409,2]
[364839864,1749268232603,-4994.39906528,0.00024417,2]
[364839867,1749268232619,-1124.911587,0.00024417,2]
[364839869,1749268232630,-2450.25572962,0.00024417,2]
[364839871,1749268232645,-15330.4336181,0.00024417,2]
[364839873,1749268232655,-1274.49,0.00024431,2]
[364839875,1749268232665,-362.5618233,0.00024486,11]
[364839877,1749268232675,-419.23,0.00024487,30]
[364839904,1749268232925,-884.51,0.00024529,2]
[364839906,1749268232935,-500.0,0.00024575,2]
[364839908,1749268232945,-165.28,0.00024673,2]
[364839910,1749268232954,-250.0,0.00024726,2]
[364839912,1749268232963,-355.49,0.00024922,2]
[364839914,1749268232972,-362.5618233,0.00025141,12]
[364839915,1749268232981,-168.23,0.00025161,2]
[364839917,1749268232991,-225.28,0.00025164,2]
[364839918,1749268233001,-254.31,0.00025479,2]
[364839919,1749268233010,-1000.0,0.00025683,2]
[364839920,1749268233019,-165.28,0.00025691,2]
[364839921,1749268233028,-362.5618233,0.00025797,13]
[364839922,1749268233039,-355.49,0.00025823,2]
[364839923,1749268233049,-152.0,0.00025851,3]
[364839924,1749268233058,-220.81,0.00025865,2]
[364839925,1749268233068,-227.6646,0.00025934,2]
[364839926,1749268233078,-1957.856,0.00026034,2]
[364839927,1749268233087,-207.4,0.00026034,2]
[364839928,1749268233097,-500.0,0.00026034,2]
[364839929,1749268233106,-500.0,0.00026034,2]
[364839930,1749268233116,-1000.0,0.00026034,2]
[364839931,1749268233126,-500.0,0.00026034,2]
[364839932,1749268233136,-500.0,0.00026034,2]
[364839933,1749268233145,-500.0,0.00026034,2]
[364839934,1749268233155,-500.0,0.00026034,2]
[364839936,1749268233165,-500.0,0.00026034,2]
[364839938,1749268233175,-197.68647046,0.00026034,2]
[364839940,1749268233184,-151.0,0.00026034,2]
[364839942,1749268233194,-300.0,0.00026034,2]
[364839944,1749268233204,-300.0,0.00026034,2]
[364839946,1749268233214,-300.0,0.00026034,2]
[364839948,1749268233224,-1000.0,0.00026064,2]
[364839950,1749268233234,-1957.856,0.00026089,2]
[364839952,1749268233244,-192.46,0.00026098,2]
[364839954,1749268233260,-206.0,0.00026305,2]
[364839956,1749268233277,-1162.75,0.00026349,2]
[364839958,1749268233288,-1162.75,0.00026349,2]
[364839960,1749268233298,-1162.75,0.00026349,2]
[364839962,1749268233308,-1574.92,0.00026365,2]
[364839964,1749268233318,-1458.63,0.00026396,2]
[364839966,1749268233327,-362.5618233,0.00026452,15]
[364839968,1749268233337,-1162.98,0.00026478,2]
[364839970,1749268233347,-160.72,0.00026676,2]
[364839972,1749268233356,-600.0,0.000267,9]
[364839974,1749268233369,-165.28,0.00026709,2]
[364839976,1749268233378,-355.49,0.00026724,2]
[364839978,1749268233388,-884.51,0.00026793,2]
[364839980,1749268233397,-1200.0,0.000268,9]
[364839982,1749268233407,-254.31,0.00026849,2]
[364839984,1749268233417,-1800.0,0.000269,9]
[364839986,1749268233426,-2123.8155289,0.00027,3]
[364839988,1749268233436,-247.0,0.00027,7]
[364839990,1749268233446,-152.0,0.00027,7]
[364839991,1749268233456,-315.086414,0.00027053,6]
[364839994,1749268233467,-6751.513,0.00027071,2]
[364839996,1749268233476,-271.7593,0.00027071,2]
[364839998,1749268233486,-165.22,0.00027096,2]
[364840000,1749268233495,-362.5618233,0.00027107,16]
[364840002,1749268233505,-500.0,0.00027123,2]
[364840004,1749268233515,-3571.42,0.00027123,2]
[364840006,1749268233525,-1162.75,0.00027171,2]
[364840008,1749268233535,-1162.75,0.00027171,2]
[364840010,1749268233544,-1162.75,0.00027171,2]
[364840012,1749268233558,-2325.5,0.00027171,2]
[364840014,1749268233568,-1162.75,0.00027171,2]
[364840016,1749268233579,-1162.75,0.00027171,2]
[364840018,1749268233589,-1162.75,0.00027171,2]
[364840020,1749268233599,-1162.75,0.00027171,2]
[364840022,1749268233609,-2325.5,0.00027171,2]
[364840023,1749268233618,-919.32,0.00027171,2]
[364840026,1749268233629,-959.1211,0.00027197,2]
[364840028,1749268233639,-22934.68432947,0.00027197,2]
[364840029,1749268233649,-3696.14029317,0.00027197,2]
[364840031,1749268233658,-181.04934,0.00027197,2]
[364840033,1749268233668,-220.81,0.00027235,2]
[364840035,1749268233678,-151.0,0.00027248,7]
[364840037,1749268233688,-151.0,0.00027248,7]
[364840040,1749268233699,-171.21,0.00027267,2]
[364840041,1749268233709,-171.21,0.00027277,2]
[364840044,1749268233719,-3696.14029315,0.00027281,2]
[364840046,1749268233730,-13309.6301237,0.00027287,2]
[364840048,1749268233746,-578.6680823,0.00027287,2]
[364840050,1749268233758,-56957.0070752,0.00027287,2]
[364840052,1749268233768,-171.21,0.00027287,2]
[364840054,1749268233777,-171.21,0.00027287,2]
[364840056,1749268233787,-500.0,0.00027296,2]
[364840058,1749268233796,-500.0,0.00027296,2]
[364840060,1749268233806,-500.0,0.00027296,2]
[364840062,1749268233817,-500.0,0.00027296,2]
[364840064,1749268233827,-500.0,0.00027296,2]
[364840066,1749268233837,-500.0,0.00027296,2]
[364840068,1749268233846,-500.0,0.00027296,2]
[364840070,1749268233855,-500.0,0.00027296,2]
[364840072,1749268233866,-500.0,0.00027296,2]
[364840074,1749268233876,-500.0,0.00027296,2]
[364840076,1749268233886,-500.0,0.00027296,2]
[364840078,1749268233895,-500.0,0.00027296,2]
[364840080,1749268233906,-533.37215253,0.00027296,2]
[364840082,1749268233915,-500.0,0.00027296,2]
[364840084,1749268233925,-225.00998822,0.00027296,2]
[364840086,1749268233934,-500.0,0.00027296,2]
[364840088,1749268233944,-500.0,0.00027296,2]
[364840089,1749268233954,-500.0,0.00027296,2]
[364840091,1749268233964,-500.0,0.00027296,2]
[364840094,1749268233974,-500.0,0.00027296,2]
[364840095,1749268233984,-500.0,0.00027296,2]
[364840098,1749268233994,-500.0,0.00027296,2]
[364840099,1749268234003,-500.0,0.00027296,2]
[364840101,1749268234013,-500.0,0.00027296,2]
[364840103,1749268234022,-411.45799561,0.00027296,2]
[364840105,1749268234032,-500.0,0.00027296,2]
[364840107,1749268234042,-500.0,0.00027296,2]
[364840110,1749268234052,-500.0,0.00027296,2]
[364840112,1749268234063,-500.0,0.00027296,2]
[364840114,1749268234074,-500.0,0.00027296,2]
[364840116,1749268234084,-500.0,0.00027296,2]
[364840117,1749268234094,-200.0,0.00027296,2]
[364840120,1749268234104,-500.0,0.00027296,2]
[364840121,1749268234114,-500.0,0.00027296,2]
[364840124,1749268234123,-500.0,0.00027296,2]
[364840125,1749268234133,-500.0,0.00027296,2]
[364840127,1749268234143,-500.0,0.00027296,2]
[364840129,1749268234152,-500.0,0.00027296,2]
[364840131,1749268234162,-500.0,0.00027296,2]
[364840134,1749268234173,-616.46672404,0.00027296,2]
[364840135,1749268234182,-500.0,0.00027296,2]
[364840138,1749268234192,-512.94074711,0.00027296,2]
[364840140,1749268234202,-500.0,0.00027297,2]
[364840141,1749268234211,-9042.05486081,0.00027297,2]
[364840144,1749268234224,-27025.38883919,0.00027297,2]
[364840146,1749268234234,-86144.75727224,0.00027297,2]
[364840190,1749268240001,-1121.29499998,0.00027297,2]
[364840256,1749268243155,-151.0,0.0001987,2]
[364840257,1749268243164,-1850.89124857,0.00027297,2]
[364840272,1749268246276,-1146.08228212,0.00026751,2]
[364840273,1749268246287,-665.48,0.00027296,2]
[364840274,1749268246297,-8355.27360852,0.00027297,2]
[364840356,1749268870747,749.0,0.00035616,120]
[364840357,1749268878573,151.79,0.00013699,2]
[364840375,1749269387721,1000.0,0.00035616,120]
[364840376,1749269388010,1000.0,0.00035616,120]
[364840377,1749269388299,1000.0,0.00035616,120]
[364840378,1749269388633,1000.0,0.00035616,120]
[364840379,1749269389218,1000.0,0.00035616,120]
[364840380,1749269389314,1000.0,0.00035616,120]
[364840381,1749269389608,1000.0,0.00035616,120]
[364840382,1749269389954,1000.0,0.00035616,120]
[364840383,1749269390262,1000.0,0.00035616,120]
[364840384,1749269390568,1000.0,0.00035616,120]
[364840385,1749269390858,1000.0,0.00035616,120]
[364840386,1749269391167,1000.0,0.00035616,120]
[364840387,1749269391498,1000.0,0.00035616,120]
[364840388,1749269391777,1000.0,0.00035616,120]
[364840389,1749269392080,1000.0,0.00035616,120]
[364840390,1749269392380,1000.0,0.00035616,120]
[364840391,1749269392705,1000.0,0.00035616,120]
[364840392,1749269393038,1000.0,0.00035616,120]
[364840393,1749269393358,1000.0,0.00035616,120]
[364840394,1749269393673,1000.0,0.00035616,120]
[364840395,1749269394355,1713.86726128,0.00035616,120]
[364840397,1749269432145,-151.0,0.00019883,2]
[364840398,1749269432155,-250.0,0.0001989,2]
[364840399,1749269432165,-100.87238368,0.00019895,2]
[364840400,1749269432177,-50.12761632,0.00019895,2]
[364840401,1749269432187,-151.79,0.00020951,2]
[364840402,1749269432197,-250.0,0.00021874,2]
[364840403,1749269432207,-50.1766694,0.00021874,2]
[364840404,1749269432332,-199.8233306,0.00021874,2]
[364840405,1749269432344,-277.54860783,0.00022809,4]
[364840406,1749269432365,-522.45139217,0.00022809,4]
[364840407,1749269432374,-300.0,0.00022809,2]
[364840408,1749269432384,-205.0,0.00023305,2]
[364840409,1749269432394,-923.91,0.00023659,2]
[364840410,1749269432403,-300.0,0.00024931,2]
[364840411,1749269432413,-516.0,0.00024931,2]
[364840412,1749269432423,-500.0,0.00024932,2]
[364840413,1749269432433,-68.10398934,0.00024932,2]
[364840414,1749269432446,-431.89601066,0.00024932,2]
[364840415,1749269432455,-267.57359264,0.00024932,2]
[364840417,1749269432467,-232.42640736,0.00024932,2]
[364840419,1749269432477,-960.07353779,0.00025537,2]
[364840422,1749269432499,-1068.08161532,0.00025537,2]
[364840424,1749269432511,-21871.84484689,0.00025537,2]
[364840426,1749269432521,-177.74,0.00025554,2]
[364840428,1749269432530,-366.82,0.00025575,30]
[364840430,1749269432541,-150.0,0.00025603,2]
[364840432,1749269432550,-1547.97,0.0002564,2]
[364840434,1749269432560,-163.67,0.00025703,2]
[364840436,1749269432569,-250.0,0.00025703,2]
[364840438,1749269432579,-200.0,0.00025728,2]
[364840440,1749269432588,-1000.0,0.00025728,2]
[364840442,1749269432597,-500.0,0.00025738,2]
[364840444,1749269432607,-187.35,0.00025778,2]
[364840446,1749269432617,-217.53709398,0.000259,14]
[364840448,1749269432633,-923.91,0.00025923,2]
[364840450,1749269432646,-151.0,0.00025943,2]
[364840452,1749269432656,-245.24164015,0.00025943,2]
[364840454,1749269432666,-207.4,0.00025943,2]
[364840456,1749269432676,-300.0,0.00025945,2]
[364840458,1749269432685,-150.0,0.00025945,2]
[364840460,1749269432695,-2751.0,0.00025985,2]
[364840462,1749269432705,-1274.0,0.00026038,2]
[364840464,1749269432715,-589.0,0.00026038,2]
[364840466,1749269432725,-2000.0,0.00026038,2]
[364840468,1749269432734,-926.0,0.00026038,2]
[364840470,1749269432744,-1255.0,0.00026038,2]
[364840472,1749269432754,-1159.0,0.00026038,2]
[364840473,1749269432766,-7018.0,0.00026038,2]
[364840476,1749269432776,-4082.0,0.00026038,2]
[364840478,1749269432789,-155.0,0.00026038,2]
[364840480,1749269432802,-852.0,0.00026038,2]
[364840482,1749269432812,-370.67,0.00026126,2]
[364840485,1749269432822,-217.53709398,0.00026314,14]
[364840487,1749269432832,-1000.0,0.00026376,2]
[364840489,1749269432842,-600.0,0.000266,9]
[364840491,1749269432852,-1300.0,0.000267,9]
[364840493,1749269432862,-252.15,0.00026709,2]
[364840495,1749269432871,-217.53709398,0.00026728,15]
[364840497,1749269432881,-1147.21818835,0.00026751,2]
[364840498,1749269432890,-1000.29886202,0.00026751,2]
[364840500,1749269432899,-1020.57132819,0.00026751,2]
[364840502,1749269432909,-1124.5291097,0.00026751,2]
[364840504,1749269432919,-1051.23759853,0.00026751,2]
[364840506,1749269432929,-1063.06495427,0.00026751,2]
[364840508,1749269432938,-1066.6049916,0.00026751,2]
[364840510,1749269432948,-1000.79694659,0.00026751,2]
[364840512,1749269432959,-1143.22753723,0.00026751,2]
[364840514,1749269432968,-1049.32450742,0.00026751,2]
[364840516,1749269432978,-1110.21802067,0.00026751,2]
[364840518,1749269432987,-1124.25994026,0.00026751,2]
[364840520,1749269432997,-1009.32068773,0.00026751,2]
[364840522,1749269433006,-1030.84246334,0.00026751,2]
[364840524,1749269433016,-1057.6240774,0.00026751,2]
[364840526,1749269433030,-1122.19486596,0.00026751,2]
[364840528,1749269433040,-2000.0,0.000268,2]
[364840530,1749269433051,-1900.0,0.000268,9]
[364840532,1749269433061,-150.0,0.00026834,2]
[364840534,1749269433070,-150.0,0.00026862,2]
[364840536,1749269433081,-2600.0,0.000269,9]
[364840538,1749269433091,-150.0,0.00026904,2]
[364840540,1749269433101,-150.0,0.00026921,2]
[364840542,1749269433111,-205.0,0.00026974,7]
[364840544,1749269433121,-150.0,0.00026991,2]
[364840546,1749269433130,-361.44,0.00026991,2]
[364840548,1749269433141,-6751.513,0.00026997,2]
[364840550,1749269433151,-271.7593,0.00026997,2]
[364840552,1749269433161,-216.0,0.00027,7]
[364840554,1749269433172,-152.0,0.00027,7]
[364840556,1749269433182,-901.78,0.00027002,2]
[364840558,1749269433191,-150.0,0.00027009,2]
[364840560,1749269433201,-376.0,0.0002701,2]
[364840562,1749269433211,-150.0,0.00027021,2]
[364840564,1749269433221,-2321.74,0.00027031,2]
[364840566,1749269433230,-150.0,0.00027032,2]
[364840568,1749269433240,-150.0,0.00027045,2]
[364840569,1749269433250,-303.3,0.00027051,2]
[364840571,1749269433260,-283.577772,0.00027053,6]
[364840573,1749269433271,-150.0,0.00027053,2]
[364840576,1749269433281,-150.0,0.00027055,2]
[364840578,1749269433292,-150.0,0.00027059,2]
[364840580,1749269433302,-158.50288471,0.00027083,2]
[364840582,1749269433312,-2500.0,0.00027087,2]
[364840584,1749269433322,-2956.91223452,0.00027087,2]
[364840586,1749269433333,-181.04934,0.00027087,2]
[364840588,1749269433343,-13148.1454,0.00027097,2]
[364840590,1749269433354,-150.0,0.00027136,2]
[364840592,1749269433364,-217.53709398,0.00027141,16]
[364840594,1749269433374,-150.0,0.00027143,2]
[364840596,1749269433384,-2034.916,0.00027145,2]
[364840598,1749269433395,-2081.8626,0.00027145,2]
[364840599,1749269433406,-2956.91223452,0.00027147,2]
[364840601,1749269433416,-1097.23276209,0.00027153,2]
[364840603,1749269433426,-150.0,0.00027155,2]
[364840606,1749269433437,-1145.17087923,0.0002716,2]
[364840607,1749269433447,-1145.17087923,0.00027163,2]
[364840609,1749269433457,-559.15564648,0.00027165,2]
[364841039,1749269438164,-167.78713812,0.00027087,2]
[364841042,1749269438175,-586.01523275,0.00027165,2]
[364841045,1749269438185,-454.54,0.00027171,2]
[364841048,1749269438195,-454.54,0.00027171,2]
[364841051,1749269438206,-453.91,0.00027171,2]
[364841055,1749269438222,-2269.53703602,0.00027176,2]
[364841064,1749269438270,-941.85830663,0.00027176,2]
[364841067,1749269438284,-1471.80078007,0.00027176,2]
[364841069,1749269438296,-316.80387728,0.00027176,2]
[364841071,1749269438307,-1759.9001504,0.00027177,2]
[364841074,1749269438324,-990.43041428,0.00027177,2]
[364841076,1749269438336,-877.02443139,0.00027177,2]
[364841376,1749269440659,-168.94364784,0.00022708,2]
[364841380,1749269440670,-173.47535246,0.00026038,2]
[364841684,1749269443458,-709.52464754,0.00026038,2]
[364841686,1749269443468,-17914.7344814,0.00027158,2]
[364841687,1749269443478,-300.0,0.00027165,2]
[364841688,1749269443487,-7384.36906951,0.00027177,2]
[364841689,1749269443507,-6331.40856182,0.00027177,2]
[364841691,1749269443516,-500.0,0.00027177,2]
[364841693,1749269443526,-17343.1326274,0.00027177,2]
[364841695,1749269443535,-150.0,0.00027183,2]
[364841697,1749269443545,-598.93,0.00027186,2]
[364841699,1749269443554,-598.93,0.00027186,2]
[364841700,1749269443563,-598.93,0.00027186,2]
[364841701,1749269443573,-598.93,0.00027186,2]
[364841702,1749269443583,-598.93,0.00027186,2]
[364841703,1749269443593,-598.93,0.00027186,2]
[364841704,1749269443602,-598.93,0.00027186,2]
[364841705,1749269443612,-598.93,0.00027186,2]
[364841706,1749269443621,-598.93,0.00027186,2]
[364841707,1749269443630,-598.93,0.00027186,2]
[364841708,1749269443640,-187627.8369,0.00027187,2]
[364841709,1749269443650,-1000.0,0.00027187,2]
[364841710,1749269443659,-820.29038532,0.00027187,2]
[364841711,1749269443669,-1165.8525364,0.00027187,2]
[364841712,1749269443679,-160.92440372,0.00027188,2]
[364841713,1749269443688,-150.0,0.00027196,2]
[364841714,1749269443698,-1001.17156769,0.000272,2]
[364841716,1749269443707,-150.0,0.00027205,2]
[364841719,1749269443717,-150.0,0.00027206,2]
[364841721,1749269443726,-2956.91223452,0.00027207,2]
[364841723,1749269443735,-150.0,0.00027222,2]
[364841725,1749269443745,-152.29,0.0002725,2]
[364841727,1749269443754,-152.29,0.00027255,2]
[364841729,1749269443766,-150.0,0.00027257,2]
[364841732,1749269443777,-3182.02821854,0.0002726,7]
[364841733,1749269443786,-17343.1326274,0.0002726,2]
[364841735,1749269443795,-500.0,0.00027265,2]
[364841737,1749269443805,-544.50239547,0.00027265,2]
[364841739,1749269443815,-150.0,0.00027265,2]
[364841741,1749269443826,-500.0,0.00027265,2]
[364841742,1749269443835,-500.0,0.00027265,2]
[364841743,1749269443846,-500.0,0.00027265,2]
[364841744,1749269443857,-500.0,0.00027265,2]
[364841745,1749269443867,-500.0,0.00027265,2]
[364841746,1749269443878,-500.0,0.00027265,2]
[364841747,1749269443887,-170.37468361,0.00027265,2]
[364841748,1749269443897,-500.0,0.00027265,2]